[Event "NY Presidents Day GM-A 2024"]
[Site "New York"]
[Date "2024.02.16"]
[Round "2.5"]
[White "Eidelman, Gabriel"]
[Black "Paragua, Mark"]
[Result "1/2-1/2"]
[ECO "D35"]
[WhiteElo "2343"]
[BlackElo "2448"]
[Annotator "TA"]
[PlyCount "61"]
[EventDate "2024.02.14"]
[EventType "tourn"]
[EventCountry "USA"]
[SourceTitle "playchess.com"]
[Source "ChessBase"]
[SourceQuality "1"]
[TimeControl "5400+30"]

{[%evp 17,61,0,15,5,14,-11,0,-5,-13,-16,-14,-11,-39,-25,-31,-39,-16,-22,-37,-20,-22,-35,0,0,15,10,36,37,34,0,47,45,62,24,69,73,89,92,95,94,198,7,8,8,19,17]} 1. d4 {[%emt 1:31:00]} d5 {[%emt 0:04:24]} 2. c4 {[%emt 0:00:12]} e6 {[%emt 0:00:17]} 3. Nc3 {[%emt 0:00:44]} Nf6 {[%emt 0:00:21]} 4. cxd5 {[%emt 0:01:04]} exd5 {[%emt 0:00:34]} 5. Bg5 {[%emt 0:00:10]} c6 {[%emt 0:01:09]} 6. e3 {[%emt 0:00:18]} Bd6 {[%emt 0:01:21]} 7. Bd3 {[%emt 1:31:27]} O-O {[%emt 0:01:11]} 8. Nf3 {[%emt 0:01:20]} Be6 {[%emt 0:06:03]} 9. O-O {[%emt 0:06:21]} Nbd7 {[%emt 0:00:26]} 10. Rc1 {[%emt 0:04:08]} Re8 {[%emt 0:08:06]} 11. Na4 {[%emt 0:12:24]} Qa5 {[%emt 0:06:33]} 12. a3 {[%emt 0:07:59]} Ne4 {[%emt 0:01:26]} 13. Nc5 {[%emt 0:04:21]} Bxc5 {[%emt 0:02:55]} 14. dxc5 {[%emt 0:00:36]} Bg4 {[%emt 0:00:10] [#] White must now prevent ...Nxg5.} ({Don't play} 14... Ndxc5 $6 15. b4 Qxa3 16. bxc5 $18) 15. Bf4 {[%emt 0:04:47]} Qd8 {[%emt 0:02:11]} ({Not} 15... Ndxc5 16. b4 Bxf3 17. gxf3 Qxa3 18. bxc5 Nxc5 19. Bxh7+ Kxh7 20. Qc2+ (20. Bd6 b6 $15) 20... Kh8 (20... Nd3 $2 21. Ra1 $18) 21. Qxc5 Qxc5 22. Rxc5 $18) 16. b4 {[%emt 0:02:47]} a5 {[%emt 0:02:50]} 17. Be2 {[%emt 0:02:59]} axb4 {[%emt 0:00:42]} 18. axb4 {[%emt 0:00:07]} Ra2 {[%emt 0:02:54]} 19. Rc2 {[%emt 0:09:20]} Qa8 {[%emt 0:01:34]} 20. Nd4 {[%emt 0:02:33]} Bxe2 {[%emt 0:02:36]} 21. Qxe2 {[%emt 0:01:48]} Ra1 {[%emt 0:01:47]} 22. f3 {[%emt 0:11:53]} Nef6 {[%emt 0:00:25]} 23. g4 {[%emt 0:11:18]} Rxf1+ {[%emt 0:02:05]} (23... Ne5 $11) 24. Kxf1 $14 {[%emt 0:01:09] Threatens to win with Ra2.} Qa1+ {[%emt 0:09:56]} 25. Kg2 {[%emt 0:00:06]} Ne5 {[%emt 0:03:47]} 26. Ra2 {[%emt 0:02:48]} Qc3 {[%emt 0:02:11]} 27. Qd2 {[%emt 0:02:15]} Qxd2+ {[%emt 0:06:22]} 28. Rxd2 {[%emt 0:00:04]} Nc4 {[%emt 0:00:04]} (28... h5 $16) 29. Rd3 $2 {[%emt 0:02:02] [#]} ({White must play} 29. Ra2 $18) 29... Nd7 {[%emt 0:01:31]} 30. Rc3 {[%emt 0:01:30][%cal Oe3e4]} Nf8 {[%emt 0:07:32]} 31. b5 {[%emt 0:03:48] Weighted Error Value: White=0.22 (precise) /Black=0.17 (very precise) .  Missed win:     	White=1     	---        Mistake:       	---       	Black=2      Inaccurate:     	White=2     	Black=3      OK:         	White=7     	Black=6} 1/2-1/2

[Event "NY Presidents Day GM-A 2024"]
[Site "New York"]
[Date "2024.02.17"]
[Round "3.1"]
[White "Paragua, Mark"]
[Black "Lu, Maximillian"]
[Result "1/2-1/2"]
[ECO "D85"]
[WhiteElo "2448"]
[BlackElo "2371"]
[Annotator "TA"]
[PlyCount "30"]
[EventDate "2024.02.14"]
[EventType "tourn"]
[EventCountry "USA"]
[SourceTitle "playchess.com"]
[Source "ChessBase"]
[SourceQuality "1"]
[TimeControl "5400+30"]

{[%evp 15,30,21,20,13,29,0,0,0,0,0,0,0,0,0,0,0,0]} 1. d4 {[%emt 0:00:02]} Nf6 {[%emt 0:00:09]} 2. c4 {[%emt 0:00:02]} g6 {[%emt 0:00:06]} 3. Nf3 {[%emt 0:00:08]} Bg7 {[%emt 0:00:09]} 4. Nc3 {[%emt 0:00:05]} d5 {[%emt 0:00:04]} 5. cxd5 {[%emt 0:00:07]} Nxd5 {[%emt 0:00:05]} 6. e4 {[%emt 0:00:05]} Nxc3 {[%emt 0:00:10]} 7. bxc3 {[%emt 0:00:03]} c5 {[%emt 0:00:18]} 8. Be3 {[%emt 0:00:05]} Qa5 {[%emt 0:00:58]} 9. Nd2 {[%emt 0:00:19]} (9. Qd2 {simplifies} Nc6 10. Rb1 cxd4 11. cxd4 O-O 12. Qxa5 Nxa5 13. Bd3) 9... O-O {[%emt 0:09:37]} 10. Nb3 {[%emt 0:00:12]} Qxc3+ {[%emt 0:05:03] The position is equal.} 11. Bd2 {[%emt 0:00:04]} Qb2 {[%emt 0:00:04]} 12. Bc1 $1 {[%emt 0:00:09]} Qc3+ {[%emt 0:00:02]} 13. Bd2 {[%emt 0:00:06]} Qb2 {[%emt 0:00:02]} 14. Bc1 $1 {[%emt 0:00:05]} Qc3+ {[%emt 0:00:08]} 15. Bd2 {[%emt 0:00:03]} Qb2 {[%emt 0:00:04] A rather calm draw.   Weighted Error Value: White=0.05 (flawless) /Black=0.05 (flawless) .  Inaccurate:     	White=1     	---        OK:         	---       	Black=5      Best:        	White=3     	Black=1      Strong:       	White=2     	---} 1/2-1/2

[Event "NY Presidents Day GM-A 2024"]
[Site "New York"]
[Date "2024.02.17"]
[Round "3.2"]
[White "Griffith, Kyron"]
[Black "Eidelman, Gabriel"]
[Result "0-1"]
[ECO "D02"]
[WhiteElo "2367"]
[BlackElo "2343"]
[Annotator "RC"]
[PlyCount "148"]
[EventDate "2024.02.14"]
[EventType "tourn"]
[EventCountry "USA"]
[SourceTitle "playchess.com"]
[Source "ChessBase"]
[SourceQuality "1"]
[TimeControl "5400+30"]

1. Nf3 {[%emt 0:00:05]} d5 {[%emt 0:00:55]} 2. g3 {[%emt 0:00:18]} Nc6 {[%emt 0:03:48]} 3. d4 {[%emt 0:00:32]} Bf5 {[%emt 0:00:09]} 4. Bg2 {[%emt 0:00:41]} e6 {[%emt 0:00:52]} 5. O-O {[%emt 0:00:57]} Nb4 {[%emt 0:00:30]} 6. Na3 {[%emt 0:00:54]} Be7 {[%emt 0:01:21]} 7. c3 {[%emt 0:02:25]} Nc6 {[%emt 0:00:07]} 8. Nc2 {[%emt 0:02:24]} Nf6 {[%emt 0:03:51]} 9. Nce1 {[%emt 0:02:27]} h6 {[%emt 0:00:46]} 10. Nd3 {[%emt 0:00:40]} O-O {[%emt 0:00:30]} 11. a4 {[%emt 0:07:08]} a5 {[%emt 0:02:03]} 12. Re1 {[%emt 0:05:58]} Bd6 {[%emt 0:08:37]} 13. b3 {[%emt 0:07:49]} Be4 {[%emt 0:03:40]} 14. Ba3 {[%emt 0:07:04]} Qe7 {[%emt 0:06:15]} 15. Qc1 {[%emt 0:00:33]} Nd7 {[%emt 0:08:45]} 16. Bh3 {[%emt 0:02:39]} Qf6 {[%emt 0:14:12]} 17. Nd2 {[%emt 0:02:16]} Bxd3 {[%emt 0:00:09]} 18. exd3 {[%emt 0:00:06]} Qg6 {[%emt 0:03:42]} 19. Qc2 {[%emt 0:03:18]} Bxa3 {[%emt 0:01:47]} 20. Rxa3 {[%emt 0:00:05]} Ne7 {[%emt 0:03:24]} 21. Nf3 {[%emt 0:03:52]} Rfc8 {[%emt 0:01:17]} 22. Qe2 {[%emt 0:02:42]} c5 {[%emt 0:02:02]} 23. dxc5 {[%emt 0:05:36]} Rxc5 {[%emt 0:01:34]} 24. c4 {[%emt 0:02:30]} Qf6 {[%emt 0:04:56]} 25. Raa1 {[%emt 0:08:03]} Ra6 {[%emt 0:07:01]} 26. d4 {[%emt 0:06:38]} Rc7 {[%emt 0:00:40]} 27. Bg2 {[%emt 0:05:22]} Rb6 {[%emt 0:01:53]} 28. Qd3 {[%emt 0:00:54]} Qg6 {[%emt 0:08:21]} 29. Qxg6 {[%emt 0:01:07]} Nxg6 {[%emt 0:00:04]} 30. cxd5 {[%emt 0:00:45]} exd5 {[%emt 0:00:05]} 31. Ne5 {[%emt 0:03:29]} Ne7 {[%emt 0:06:03]} 32. Nd3 {[%emt 0:01:44]} Nf6 {[%emt 0:00:24]} 33. Rab1 {[%emt 0:04:03]} Kf8 {[%emt 0:01:54]} 34. Nf4 {[%emt 0:07:10]} Rb4 {[%emt 0:01:24]} 35. Ne2 {[%emt 0:00:39]} Nf5 {[%emt 0:00:52]} 36. Red1 {[%emt 0:00:28]} g5 {[%emt 0:01:37]} 37. Rd3 {[%emt 0:01:01]} Ne4 {[%emt 0:00:43]} 38. Bxe4 {[%emt 0:01:26]} dxe4 {[%emt 0:00:05]} 39. Rd2 {[%emt 0:00:06]} Ke7 {[%emt 0:00:51]} 40. Kg2 {[%emt 0:02:27]} Kd6 {[%emt 0:00:16]} 41. h4 {[%emt 0:00:51]} Kd5 {[%emt 0:00:59]} 42. hxg5 {[%emt 0:00:30]} hxg5 {[%emt 0:00:04]} 43. Kh3 {[%emt 0:00:20]} e3 {[%emt 0:02:46]} 44. fxe3 {[%emt 0:00:28]} Nxe3 {[%emt 0:00:02]} 45. g4 {[%emt 0:01:26]} Rc2 {[%emt 0:00:36]} 46. Rxc2 {[%emt 0:00:11]} Nxc2 {[%emt 0:00:04]} 47. Rb2 {[%emt 0:01:17]} Nxd4 {[%emt 0:00:38]} 48. Nc1 {[%emt 0:00:17]} Ke4 {[%emt 0:00:25]} 49. Kg3 {[%emt 0:00:04]} b5 {[%emt 0:01:14]} 50. Na2 {[%emt 0:00:58]} bxa4 {[%emt 0:00:43]} 51. Nc3+ {[%emt 0:00:43]} Ke5 {[%emt 0:00:26]} 52. Nxa4 {[%emt 0:00:17]} Rxb3+ {[%emt 0:00:08]} 53. Rxb3 {[%emt 0:00:04]} Nxb3 {[%emt 0:00:05]} 54. Kf3 {[%emt 0:00:06]} Kd4 {[%emt 0:00:38]} 55. Ke2 {[%emt 0:00:49]} Nc5 {[%emt 0:00:44]} 56. Nb6 {[%emt 0:00:06]} a4 {[%emt 0:00:55]} 57. Kd2 {[%emt 0:00:06]} a3 {[%emt 0:00:29]} 58. Kc2 {[%emt 0:00:05]} Ke4 {[%emt 0:00:29]} 59. Nc4 {[%emt 0:00:09]} a2 {[%emt 0:00:34]} 60. Kb2 {[%emt 0:00:06]} Kf4 {[%emt 0:00:04]} 61. Kxa2 {[%emt 0:00:10]} f6 {[%emt 0:00:25]} 62. Kb2 {[%emt 0:00:08]} Kxg4 {[%emt 0:00:05]} 63. Kc3 {[%emt 0:00:10]} Ne6 {[%emt 0:01:10]} 64. Kd2 {[%emt 0:00:11]} f5 {[%emt 0:00:19]} 65. Ne3+ {[%emt 0:00:12]} Kf4 {[%emt 0:00:03]} 66. Ke2 {[%emt 0:00:04]} g4 {[%emt 0:00:29]} 67. Nd5+ {[%emt 0:00:21]} Kg3 {[%emt 0:00:21]} 68. Ne3 {[%emt 0:00:36]} f4 {[%emt 0:00:09]} 69. Nf5+ {[%emt 0:00:51]} Kh3 {[%emt 0:00:34]} 70. Kf1 {[%emt 0:00:28]} Ng5 {[%emt 0:00:28]} 71. Kg1 {[%emt 0:00:11]} g3 {[%emt 0:00:40]} 72. Nd4 {[%emt 0:00:05]} f3 {[%emt 0:00:40]} 73. Nf5 {[%emt 0:01:19]} f2+ {[%emt 0:00:18]} 74. Kf1 {[%emt 0:00:05]} Ne4 {[%emt 0:00:06]} 0-1

[Event "NY Presidents Day GM-A 2024"]
[Site "New York"]
[Date "2024.02.17"]
[Round "3.3"]
[White "Novik, Maxim"]
[Black "Lenderman, Aleksandr"]
[Result "1/2-1/2"]
[ECO "B22"]
[WhiteElo "2399"]
[BlackElo "2521"]
[Annotator "TA"]
[PlyCount "35"]
[EventDate "2024.02.14"]
[EventType "tourn"]
[EventCountry "USA"]
[SourceTitle "playchess.com"]
[Source "ChessBase"]
[SourceQuality "1"]
[TimeControl "5400+30"]

{[%evp 21,35,19,28,18,32,13,30,29,25,0,0,0,0,5,6,0]} 1. e4 {[%emt 0:00:12]} c5 {[%emt 0:00:06]} 2. c3 {[%emt 0:02:03]} d5 {[%emt 0:00:52]} 3. exd5 {[%emt 0:02:19]} Qxd5 {[%emt 0:00:10]} 4. d4 {[%emt 0:00:04]} Nf6 {[%emt 0:00:24]} 5. Nf3 {[%emt 0:00:20]} e6 {[%emt 0:01:09]} 6. Be2 {[%emt 0:00:15]} Nc6 {[%emt 0:02:18]} 7. O-O {[%emt 0:00:08]} Be7 {[%emt 0:04:06]} 8. c4 {[%emt 0:00:32]} Qd8 {[%emt 0:01:30]} 9. dxc5 {[%emt 0:00:07]} Qxd1 {[%emt 0:00:58]} 10. Rxd1 {[%emt 0:00:06]} Bxc5 {[%emt 0:00:18]} 11. Nc3 {[%emt 0:00:09]} O-O {[%emt 0:00:44]} 12. Bf4 {[%emt 0:00:48]} b6 {[%emt 0:02:06]} 13. a3 {[%emt 0:00:26]} Bb7 {[%emt 0:00:25]} 14. b4 {[%emt 0:01:04] White has an edge.} Be7 {[%emt 0:00:05]} 15. Bd6 {[%emt 0:00:17]} Bxd6 {[%emt 0:02:03] The position is equal.} 16. Rxd6 {[%emt 0:00:02]} Rfd8 {[%emt 0:00:05]} 17. Rxd8+ {[%emt 0:03:25]} Rxd8 {[%emt 0:00:08]} 18. Rd1 {[%emt 1:27:13] A rather calm draw.   Weighted Error Value: White=0.12 (very precise) /Black=0.00 (flawless) .  OK:         	White=2     	Black=4      Best:        	---       	Black=1} 1/2-1/2

[Event "NY Presidents Day GM-A 2024"]
[Site "New York"]
[Date "2024.02.17"]
[Round "3.4"]
[White "Yu, Jiangwei"]
[Black "Mandizha, Farai"]
[Result "1/2-1/2"]
[ECO "D84"]
[WhiteElo "2357"]
[BlackElo "2367"]
[Annotator "TA"]
[PlyCount "126"]
[EventDate "2024.02.14"]
[EventType "tourn"]
[EventCountry "USA"]
[SourceTitle "playchess.com"]
[Source "ChessBase"]
[SourceQuality "1"]
[TimeControl "5400+30"]

{[%evp 26,126,107,109,158,151,144,139,295,297,300,302,309,298,308,305,297,256,293,299,337,254,247,215,302,294,359,352,397,356,375,383,368,327,404,427,439,421,443,443,426,410,411,406,418,399,412,413,410,403,411,410,395,369,370,311,310,291,281,275,302,294,300,287,311,179,179,170,167,147,146,127,127,117,120,124,127,127,127,127,78,60,187,193,181,196,165,80,80,80,121,0,79,79,79,77,73,0,70,0,74,0,73]} 1. d4 {[%emt 0:11:20]} Nf6 {[%emt 0:19:08]} 2. c4 {[%emt 0:00:14]} g6 {[%emt 0:03:50]} 3. Nc3 {[%emt 0:00:08]} d5 {[%emt 0:00:04]} 4. Bf4 {[%emt 0:00:48]} Bg7 {[%emt 0:00:47]} 5. e3 {[%emt 0:00:05]} O-O {[%emt 0:00:30]} 6. cxd5 {[%emt 0:00:10]} Nxd5 {[%emt 0:00:06]} 7. Nxd5 {[%emt 0:00:08]} Qxd5 {[%emt 0:00:27]} 8. Bxc7 {[%emt 0:00:08]} Nc6 {[%emt 0:00:14]} 9. Ne2 {[%emt 0:00:13]} Bg4 {[%emt 0:06:02]} 10. h3 {[%emt 0:00:13] D84: Grünfeld: 4 Bf4 Bg7 5 e3 0-0 6 cxd5.} Bxe2 {[%emt 0:02:19]} 11. Bxe2 {[%emt 0:00:05]} Qxg2 {[%emt 0:01:08]} 12. Bf3 {[%emt 0:00:05]} Qg5 {[%emt 0:00:33]} 13. Qb3 {[%emt 0:01:55]} Qf6 $146 {[%emt 0:00:45]} (13... Qf5 $11 {keeps the balance.} 14. Bg2 Rac8 15. Qxb7 Qd7 16. Qxc6 (16. Bxc6 Rxc7 17. Bxd7 Rxb7 $11) 16... Qxc6 17. Bxc6) ({Predecessor:} 13... Qf5 14. Bg2 Rac8 15. Qxb7 Qd7 16. Bxc6 Qxc7 17. Qxc7 Rxc7 18. Ba4 Rb8 19. Bb3 e5 {½-½ Bai,J (2593)-Xu,X (2564) Hangzhou GM 2022 (4)}) 14. Bg2 $16 {[%emt 0:01:24]} Rac8 {[%emt 0:25:35]} (14... Nd8 $142) 15. Qxb7 $16 {[%emt 0:00:30]} Nxd4 {[%emt 0:04:35]} 16. exd4 {[%emt 0:04:49]} Rxc7 $2 {[%emt 0:03:53]} (16... Qe6+ $16 {was worth a try.} 17. Be5 Bxe5 18. dxe5 Qxe5+ 19. Qe4 Qxb2) 17. Qxc7 $18 {[%emt 0:00:13]} Qe6+ {[%emt 0:00:09]} 18. Kf1 {[%emt 0:02:27]} Bxd4 {[%emt 0:00:46]} 19. Qc6 {[%emt 0:14:51]} Qf5 {[%emt 0:00:33]} 20. Bf3 {[%emt 0:00:27]} Rb8 {[%emt 0:07:53]} 21. Qd5 {[%emt 0:07:48]} Qf6 {[%emt 0:01:48]} 22. Rd1 {[%emt 0:03:29]} e5 {[%emt 0:00:03]} 23. Rxd4 {[%emt 0:09:43]} exd4 {[%emt 0:00:02]} 24. Kg2 {[%emt 0:00:14]} Rd8 {[%emt 0:01:54]} (24... Rxb2 $142 25. Re1 Kg7) 25. Qa5 $18 {[%emt 0:02:17]} d3 {[%emt 0:03:13]} 26. Rd1 {[%emt 0:00:42]} ({And not} 26. Qxa7 Qg5+ 27. Bg4 h5 $14) 26... Rd4 {[%emt 0:03:54]} 27. Qd2 {[%emt 0:03:00]} h5 {[%emt 0:00:44]} 28. Qe3 {[%emt 0:02:12]} Qd6 {[%emt 0:00:44]} 29. Rd2 {[%emt 0:00:50]} a5 {[%emt 0:00:23]} 30. Be4 {[%emt 0:01:05]} Qe5 {[%emt 0:01:20]} 31. Bxd3 {[%emt 0:03:15]} Qd5+ {[%emt 0:00:01]} 32. Kg1 {[%emt 0:00:20]} Qd6 {[%emt 0:00:12]} 33. Qf3 {[%emt 0:01:00]} Kg7 {[%emt 0:05:20]} 34. Rd1 {[%emt 0:02:01]} Rd5 {[%emt 0:02:50]} 35. Be2 {[%emt 0:05:13]} Rg5+ {[%emt 0:00:02]} 36. Kh1 {[%emt 0:00:08]} Qe7 {[%emt 0:00:07]} 37. Bf1 {[%emt 0:03:45]} Rf5 {[%emt 0:01:23]} 38. Qc3+ {[%emt 0:09:15]} Kh7 {[%emt 0:00:15]} 39. Re1 {[%emt 0:00:29]} Qd7 {[%emt 0:00:40]} 40. Qe3 {[%emt 0:07:56]} Qb7+ {[%emt 0:00:59]} 41. Bg2 {[%emt 0:00:14]} Qxb2 {[%emt 0:00:09]} 42. Re2 {[%emt 0:00:33]} Qa1+ {[%emt 0:01:09]} 43. Kh2 {[%emt 0:00:06]} Qf6 {[%emt 0:00:39]} 44. Rd2 {[%emt 0:02:47]} Qh4 {[%emt 0:00:33]} 45. Qd4 {[%emt 0:00:41]} (45. Kg1 $142) 45... Qxd4 $18 {[%emt 0:03:16]} 46. Rxd4 {[%emt 0:00:01]} Rxf2 {[%emt 0:00:01]} 47. Ra4 {[%emt 0:02:03]} Rf5 {[%emt 0:00:07]} 48. Kg3 {[%emt 0:01:23]} Rc5 {[%emt 0:00:02]} 49. Rf4 {[%emt 0:01:12]} Kg7 {[%emt 0:00:02]} 50. a4 {[%emt 0:00:24]} g5 {[%emt 0:00:09]} 51. Rd4 {[%emt 0:00:23]} f5 {[%emt 0:02:24]} 52. h4 {[%emt 0:01:02]} Rc3+ {[%emt 0:00:56]} (52... Kf6 $142) 53. Kf2 $16 {[%emt 0:00:20]} Rc2+ {[%emt 0:01:20]} ({Black should try} 53... g4 $1 $14) 54. Kg1 $18 {[%emt 0:00:13]} g4 {[%emt 0:00:39]} 55. Rd5 {[%emt 0:00:20]} Kf6 {[%emt 0:00:21]} 56. Bf1 {[%emt 0:01:07]} (56. Rxa5 $18 {is more deadly. Bf1 would now be deadly.} Rc1+ 57. Kh2) 56... Rc1 $16 {[%emt 0:00:40]} 57. Kf2 {[%emt 0:00:36]} Rc2+ {[%emt 0:00:37]} 58. Kg1 {[%emt 0:00:17]} Rc1 $1 {[%emt 0:00:04]} 59. Rxa5 {[%emt 0:00:41]} Ra1 {[%emt 0:00:07]} 60. Kf2 {[%emt 0:00:25]} Ra2+ {[%emt 0:01:05]} 61. Kg1 {[%emt 0:00:35]} Ra1 $1 {[%emt 0:00:07]} 62. Kf2 {[%emt 0:00:30]} Ra2+ $1 {[%emt 0:00:09]} 63. Kg1 {[%emt 0:00:39]} Ra1 $1 {[%emt 0:00:04]} 1/2-1/2

[Event "NY Presidents Day GM-A 2024"]
[Site "New York"]
[Date "2024.02.17"]
[Round "3.5"]
[White "Rorrer, Grayson"]
[Black "Kaliksteyn, Alexander"]
[Result "0-1"]
[ECO "B94"]
[WhiteElo "2396"]
[BlackElo "2363"]
[Annotator "TA"]
[PlyCount "82"]
[EventDate "2024.02.14"]
[EventType "tourn"]
[EventCountry "USA"]
[SourceTitle "playchess.com"]
[Source "ChessBase"]
[SourceQuality "1"]
[TimeControl "5400+30"]

{[%evp 11,82,12,16,0,42,26,38,14,25,20,29,24,55,50,37,57,43,27,16,0,0,0,0,0,0,0,0,0,0,0,0,0,0,-17,-33,-14,13,-133,-122,-67,-69,-154,0,-106,-62,-72,-57,-118,0,-367,-235,-327,-292,-323,-286,-706,-719,-754,-528,-614,-635,-622,-605,-1104,-1097,-1156,-1126,-1097,-1091,-1049,-1083,-1012,-994]} 1. e4 {[%emt 0:00:07]} c5 {[%emt 0:05:12]} 2. Nf3 {[%emt 0:00:09]} d6 {[%emt 0:00:04]} 3. d4 {[%emt 0:00:06]} cxd4 {[%emt 0:00:05]} 4. Nxd4 {[%emt 0:00:06]} Nf6 {[%emt 0:00:04]} 5. Nc3 {[%emt 0:00:07]} a6 {[%emt 0:00:42]} 6. Bg5 {[%emt 0:00:11]} Nbd7 {[%emt 0:00:28][%cal Bb8d7,Bd7e5,Be5c4,Bc4e3][%mdl 32]} 7. Be3 {[%emt 0:00:08]} g6 {[%emt 0:20:38]} 8. f3 {[%emt 0:00:59]} h5 {[%emt 0:01:26]} 9. a4 {[%emt 0:05:00] White is slightly better.} b6 {[%emt 0:04:35]} 10. Bc4 {[%emt 0:04:39]} Bb7 {[%emt 0:06:39]} 11. Qe2 {[%emt 0:02:22]} Ne5 {[%emt 0:30:31]} 12. Bb3 {[%emt 0:01:21]} Rc8 {[%emt 0:01:14]} 13. O-O {[%emt 0:02:52]} Bg7 {[%emt 0:03:40]} 14. Rad1 {[%emt 0:03:33]} Qc7 $1 {[%emt 0:01:32]} 15. h3 {[%emt 0:05:40]} Nc4 {[%emt 0:01:40]} 16. Ndb5 {[%emt 0:06:07]} axb5 {[%emt 0:01:24]} 17. Nxb5 {[%emt 0:00:06]} Qc6 {[%emt 0:00:57] [#] aiming for ...Nxe3.} 18. Na7 {[%emt 0:00:20][%csl LRc6,LRc8]} Qc7 {[%emt 0:01:22][%cal Oc4e3]} 19. Nxc8 {[%emt 0:00:19]} (19. Nb5 $5 Qc6 $8 20. Na7 $11) 19... Nxe3 {[%emt 0:00:05]} (19... Nxb2 $2 20. Nxb6 Nxd1 21. Rxd1 $18 (21. Qxd1 O-O $18)) 20. Nxd6+ {[%emt 0:00:17]} exd6 {[%emt 0:00:09]} 21. Qxe3 {[%emt 0:00:06]} O-O {[%emt 0:01:00]} 22. Qd3 {[%emt 0:01:18]} Qc5+ {[%emt 0:02:01][%mdl 1024] Black has compensation.} 23. Kh1 {[%emt 0:00:34]} Ne8 {[%emt 0:09:09]} 24. f4 {[%emt 0:04:56]} (24. e5 $11 {keeps the balance.} Bxe5 25. Qxg6+ Ng7 26. Qh6) 24... Nf6 $17 {[%emt 0:02:16]} 25. Rfe1 {[%emt 0:03:33][%cal Oc2c3]} Qf2 {[%emt 0:02:10] ...Re8 is the strong threat.} 26. Qf3 {[%emt 0:02:59] [#]} (26. Re2 $1 $15 Qxf4 27. Qxd6 Qxd6 28. Rxd6 Nxe4 (28... Bxe4 29. c3 $14) 29. Rxg6) 26... Qc5 $2 {[%emt 0:00:01]} (26... Qh4 $1 $17 {Threatens to win with ...Bh6.} 27. Kg1 Re8) 27. c3 {[%emt 0:02:33]} (27. Qd3 $1 $11 {was the only way to keep the balance.}) 27... Re8 {[%emt 0:00:20]} 28. Rd4 {[%emt 0:00:19]} Re7 $36 {[%emt 0:01:53][%cal Oc5f5][%mdl 2048] White is under pressure.} 29. Qd3 {[%emt 0:03:01]} (29. Bc2 $15) 29... h4 {[%emt 0:00:24]} ({Better is} 29... Kh7 $17 {And now ...Bh6 would win.} 30. Bc2 h4) 30. Bd1 $2 {[%emt 0:09:21][%mdl 8192]} (30. e5 $1 $11 {and White is okay.} dxe5 31. Rxe5 Rxe5 32. fxe5 Qxe5 33. Qxg6 Qe1+ 34. Kh2 Qg3+ 35. Qxg3 hxg3+ 36. Kh1) 30... Nh5 {[%emt 0:01:02]} 31. b4 {[%emt 0:00:05]} Ng3+ {[%emt 0:01:08]} 32. Kh2 {[%emt 0:00:31]} ({Not} 32. Qxg3 $2 Qxd4 (32... Bxd4 33. bxc5 hxg3 34. cxd6 $14) 33. cxd4 hxg3 $19) 32... Qc7 {[%emt 0:00:30]} 33. e5 $2 {[%emt 0:10:20]} (33. Bf3) 33... dxe5 $19 {[%emt 0:00:10] Black is clearly winning.} 34. Rc4 {[%emt 0:00:32]} Qb8 {[%emt 0:00:48] Strongly threatening ...e4.} 35. Kg1 {[%emt 0:04:55]} e4 {[%emt 0:00:52]} 36. Qd2 {[%emt 0:00:42]} Bh6 {[%emt 0:00:57] This pair of bishops is nice.} 37. a5 {[%emt 0:08:41]} Bxf4 {[%emt 0:00:35]} 38. Qb2 {[%emt 0:04:26]} bxa5 {[%emt 0:00:24] Hoping for ...e3.} 39. bxa5 {[%emt 0:00:10]} Qa7+ {[%emt 0:00:31]} 40. Qb6 {[%emt 0:01:04]} Qxb6+ {[%emt 0:00:13]} 41. axb6 {[%emt 0:00:06]} Bd2 {[%emt 0:00:02] Weighted Error Value: White=0.73/Black=0.28 (precise) .  Loses game:     	White=1     	---        Mistake:       	White=5     	Black=2      Inaccurate:     	White=1     	Black=4      OK:         	White=12    	Black=15     Best:        	White=3     	Black=2      Strong:       	---       	Black=1} 0-1

[Event "NY Presidents Day GM-A 2024"]
[Site "New York"]
[Date "2024.02.17"]
[Round "4.1"]
[White "Lu, Maximillian"]
[Black "Kaliksteyn, Alexander"]
[Result "1/2-1/2"]
[ECO "B20"]
[WhiteElo "2371"]
[BlackElo "2363"]
[Annotator "TA"]
[PlyCount "30"]
[EventDate "2024.02.14"]
[EventType "tourn"]
[EventCountry "USA"]
[SourceTitle "playchess.com"]
[Source "ChessBase"]
[SourceQuality "1"]
[TimeControl "5400+30"]

{[%evp 9,30,-22,-23,-24,-23,-15,-15,-9,-12,-18,-11,-24,-21,-23,-4,-12,0,0,0,0,6,-24,-26]} 1. e4 {[%emt 0:02:40]} c5 {[%emt 0:02:26]} 2. b3 {[%emt 0:00:02]} Nf6 {[%emt 0:01:14]} 3. Nc3 {[%emt 0:03:07]} Nc6 {[%emt 0:06:20]} 4. Bb2 {[%emt 0:02:32]} g6 {[%emt 0:08:01]} 5. f4 {[%emt 0:07:58]} d6 {[%emt 0:00:35]} 6. Bb5 {[%emt 0:01:01]} Bd7 {[%emt 0:02:02]} 7. Nd5 {[%emt 0:12:17]} Bg7 {[%emt 0:04:01]} 8. Nxf6+ {[%emt 0:00:41] Die Stellung ist ausgeglichen.} Bxf6 {[%emt 0:00:06]} 9. Bxf6 {[%emt 0:01:36]} exf6 {[%emt 0:00:05]} 10. Nf3 {[%emt 0:00:56]} O-O {[%emt 0:02:46]} 11. O-O {[%emt 0:00:33][%cal Of4f5]} Re8 {[%emt 0:07:18]} 12. d3 {[%emt 0:03:20][%cal Of4f5]} Nd4 {[%emt 0:00:33]} 13. Bxd7 {[%emt 0:21:07]} Qxd7 {[%emt 0:00:49]} 14. c3 {[%emt 0:00:11]} Nc6 {[%emt 0:12:45]} 15. f5 {[%emt 0:02:05]} d5 {[%emt 0:00:40] Ein ziemlich ruhiges Remis.   Gewichteter Fehlerwert: Weiß=0.04 (makellos) /Schwarz=0.04 (makellos) .  Ungenau:       	Weiß=1     	---        OK:         	Weiß=4     	Schwarz=4} 1/2-1/2